Cogmind - Beta 10.1 @@@ ROGUE MODE // 2020.09.27 @ 09:21:27 Player: ~Hale4 Result: Destroyed by as-02803 with Assembled Blade Performance ------------- Evolutions (0) 0 Regions Visited (2) 400 Robots Destroyed (11) 55 Value Destroyed (69) 69 Prototype IDs (0) 0 Alien Tech Used (0) 0 Bonus (0) 0 TOTAL SCORE: 524 Bonus ------- None Cogmind --------- Core Integrity 0/250 Matter 300/300 Energy 125/125 System Corruption 2% Temperature Cool (95) Movement Walking (120) Location -10/Mines Parts ------- > --- POWER (1) -------- Light Ion Engine > --- PROPULSION (2) --- Aluminum Leg Flexi-carbon Leg > --- UTILITY (2) ------ Small Storage Unit Improved Light Armor Plating > --- WEAPON (2) ------- (None) > --- INVENTORY (6) ---- (None) Peak State ------------ > --- POWER ------------ Light Ion Engine > --- PROPULSION ------- Aluminum Leg Flexi-carbon Leg > --- UTILITY ---------- Small Storage Unit Improved Light Armor Plating > --- WEAPON ----------- (None) > --- INVENTORY -------- (None) [Rating: 11] Favorites ----------- Power Ion Engine Engine Ion Engine Propulsion Aluminum Leg Leg Aluminum Leg Utility Small Storage Unit Storage Small Storage Unit Protection Improved Light Armor Plating Weapon Assault Rifle Energy Gun Medium Laser Ballistic Gun Assault Rifle Launcher Grenade Launcher Build | -11 -10 -10 ------- Run | Scr Mat Min Slots Evolved . | . . . Power . | . . . Propulsion . | . . . Utility . | . . . Weapon . | . . . Parts Attached 15 | 7 1 7 Power 3 | 2 . 1 Engine 3 | 2 . 1 Core . | . . . Reactor . | . . . Propulsion 4 | 2 . 2 Treads . | . . . Leg 4 | 2 . 2 Wheel . | . . . Hover . | . . . Flight . | . . . Utility 2 | 1 . 1 Device . | . . . Storage 1 | 1 . . Processor . | . . . Hackware . | . . . Protection 1 | . . 1 Artifact . | . . . Weapon 6 | 2 1 3 Energy Gun 3 | 1 1 1 Energy Cannon . | . . . Ballistic Gun 2 | 1 . 1 Ballistic Cannon . | . . . Launcher 1 | . . 1 Special Weapon . | . . . Impact Weapon . | . . . Slashing Weapon . | . . . Piercing Weapon . | . . . Special Melee Weapon . | . . . Unidentified Prototypes . | . . . Parts Lost 7 | . . 7 Power 1 | . . 1 Propulsion 2 | . . 2 Utility . | . . . Weapon 4 | . . 4 Highest Loss Streak 6 | . . 6 Average Slot Usage (%) 79 | . 85 75 Engine 13 | . 14 12 Leg 26 | . 28 26 Storage 14 | . 14 14 Energy Gun 11 | . 14 10 Ballistic Gun 12 | . 14 11 Naked Turns . | . . . Heaviest Build 14 | 13 13 14 Greatest Support 30 | 20 20 30 Greatest Overweight (x) 2 | 2 . 1 Average Overweight (x) . | . . . Largest Inventory Capacity 6 | 6 6 6 Average Capacity 5 | 4 6 6 Most Carried 4 | 3 4 4 Average Carried 2 | 1 3 2 Final Capacity 6 | 6 6 6 Final Carried 4 | 2 4 . Class Distribution -------------------- 100% | Mutant Dominant Class ---------------- Mutant | -10/Materials Mutant | -10/Mines Resources | -11 -10 -10 ----------- Run | Scr Mat Min Matter Collected 435 | 258 43 134 Remotely . | . . . Salvage Created 219 | . 126 93 Parts 6 | . 6 . Haulers Intercepted . | . . . Recyclers Shooed . | . . . Parts Field Recycled . | . . . Retrieved Matter . | . . . Parts Self-Destructed . | . . . Prevented . | . . . Kills | -11 -10 -10 ------- Run | Scr Mat Min Combat Hostiles Destroyed 10 | . 2 8 Guns 8 | . 2 6 AOE 2 | . . 2 Classes Destroyed 3 | . 2 1 Worker 1 | . 1 . Grunt 2 | . 2 . Assembled 8 | . . 8 Best Kill Streak 4 | . 1 4 Combat Bots Only 4 | . 1 4 Max Kills in Single Turn 1 | . 1 1 Gunslinging . | . . . Exploded 1 | . . 1 Melee . | . . . Uniques/NPCs Destroyed . | . . . Combat | -11 -10 -10 -------- Run | Scr Mat Min Damage Taken 1026 | . 78 948 Core 278 | . 11 267 Absorbed by Shields . | . . . Core Remaining (%) 100 | 100 . . Volleys Fired 36 | . 10 26 Largest 2 | . 2 2 Hottest 80 | . 70 80 Shots Fired 69 | . 20 49 Gun 65 | . 20 45 Cannon . | . . . Launcher 4 | . . 4 Special . | . . . Kinetic 32 | . 10 22 Thermal 28 | . 5 23 Explosive 4 | . . 4 Electromagnetic 5 | . 5 . Robot Hit Streak 6 | . 4 6 Robot Miss Streak 8 | . 3 8 Penetration Max . | . . . Secondary Targets 2 | . . 2 Max Gunslinging Chain 1 | . . 1 Shots Hit Robots 34 | . 10 24 Core Hits 21 | . 5 16 Critical Hits . | . . . Critical Kills . | . . . Critical Parts Destroyed . | . . . Melee Attacks . | . . . Impact . | . . . Slashing . | . . . Piercing . | . . . Sneak Attacks . | . . . Combat Hostiles . | . . . Follow-up Attacks . | . . . Damage Inflicted 574 | . 154 420 Guns 479 | . 154 325 Cannons . | . . . Explosions 88 | . . 88 Melee . | . . . Ramming 7 | . . 7 Kinetic 237 | . 75 162 Thermal 214 | . 51 163 Explosive 88 | . . 88 Electromagnetic 28 | . 28 . Impact . | . . . Slashing . | . . . Piercing . | . . . Highest Corruption 2 | . . 2 Average Corruption 2 | . . 2 Corruption Purged . | . . . Effects 1 | . . 1 Heat Flow Errors 1 | . . 1 Overload Shots . | . . . Overflow Damage 5 | . . 5 Projectiles . | . . . Explosions 5 | . . 5 Melee . | . . . Knockbacks . | . . . Impact . | . . . Kinetic . | . . . Secondary . | . . . Self-Inflicted Damage 15 | . . 15 Shots 1 | . . 1 Rammed 2 | . . 2 Targets Rammed 5 | . . 5 Kicked 3 | . . 3 Crushed . | . . . Highest Temperature 156 | . 42 156 Average Temperature 48 | . 19 58 Received Heat Transfer 302 | . 42 260 Siege Activations . | . . . Robots Corrupted . | . . . Combat Hostiles . | . . . Parts Fried . | . . . Impact Corruptions . | . . . Robots Melted . | . . . Combat Hostiles . | . . . Parts Melted . | . . . Heat Transferred 629 | . 148 481 Parts Sabotaged . | . . . Parts Stolen . | . . . Parts Stripped . | . . . Power Chain Reactions . | . . . Missiles Intercepted . | . . . Alert | -11 -10 -10 ------- Run | Scr Mat Min Peak Influence 45 | . 45 37 Initial 17 | . . 17 Average 14 | . 17 15 Maximum Alert Level . | . . . Low Security (%) 100 | 100 100 100 Level 1 . | . . . Level 2 . | . . . Level 3 . | . . . Level 4 . | . . . Level 5 . | . . . High Security . | . . . Max Security . | . . . Squads Dispatched . | . . . Investigation . | . . . Extermination . | . . . Reinforcement . | . . . Assault . | . . . Garrison . | . . . Intercept . | . . . Construction Impeded . | . . . Haulers Reinforced . | . . . Stealth | -11 -10 -10 --------- Run | Scr Mat Min Distress Signals 1 | . . 1 Communications Jammed . | . . . Distress Signals . | . . . Times Spotted 18 | . 3 15 Peak Tracking Total 4 | . 2 4 Tactical Retreats 2 | . 1 1 Traps | -11 -10 -10 ------- Run | Scr Mat Min Traps Triggered . | . . . Indirectly . | . . . Trap Hack Attempts . | . . . Triggered . | . . . Disarmed . | . . . Reprogrammed . | . . . Reused . | . . . Traps Extracted . | . . . Installed . | . . . Triggered . | . . . Machines | -11 -10 -10 ---------- Run | Scr Mat Min Machines Disabled . | . . . Max in Single Turn . | . . . Machines Sabotaged . | . . . Garrisons Compromised . | . . . Overloaded Fab Kills . | . . . Fab Network Shutdowns . | . . . Hacking | -11 -10 -10 --------- Run | Scr Mat Min Machines Accessed 1 | . 1 . Terminals 1 | . 1 . Fabricators . | . . . Repair Stations . | . . . Recycling Units . | . . . Scanalyzers . | . . . Garrison Access . | . . . Total Hacks 1 | . 1 . Successful 1 | . 1 . Failed . | . . . Catastrophic . | . . . Database Lockouts . | . . . Manual . | . . . Terminals 1 | . 1 . Fabricators . | . . . Repair Stations . | . . . Recycling Units . | . . . Scanalyzers . | . . . Garrison Access . | . . . Terminal Hacks 1 | . 1 . Dispatch Records 1 | . 1 . Fabricator Hacks . | . . . Repair Station Hacks . | . . . Recycling Unit Hacks . | . . . Scanalyzer . | . . . Garrison Access Hacks . | . . . Unauthorized Hacks . | . . . Terminals . | . . . Fabricators . | . . . Repair Stations . | . . . Recycling Units . | . . . Scanalyzers . | . . . Garrison Access . | . . . Data Cores Recovered . | . . . Used . | . . . Hacking Detections . | . . . Full Trace Events . | . . . Feedback Events . | . . . Feedback Blocked . | . . . Robot Schematics Acquired . | . . . Robots Built . | . . . Matter . | . . . Time . | . . . Total Robot Build Rating . | . . . Part Schematics Acquired . | . . . Parts Built . | . . . Matter . | . . . Time . | . . . Total Part Build Rating . | . . . Parts Repaired . | . . . Time . | . . . Parts Recycled . | . . . Recycled Matter . | . . . Retrieved Matter . | . . . Retrieved Components . | . . . Parts Scanalyzed . | . . . Part Schematics Acquired . | . . . Parts Damaged . | . . . Bothacking | -11 -10 -10 ------------ Run | Scr Mat Min Used RIF Installer . | . . . Robots Hacked . | . . . Non-combat . | . . . Combat . | . . . Robot Hacks Applied . | . . . Relay Couplers Released . | . . . Robots Rewired . | . . . Allies Hacked . | . . . Hacks Repelled . | . . . Allies | -11 -10 -10 -------- Run | Scr Mat Min Total Allies . | . . . Largest Group . | . . . Highest-Rated Group . | . . . Highest-Rated Ally . | . . . Total Orders . | . . . Ally Attacks . | . . . Total Damage . | . . . Kills . | . . . Allies Corrupted . | . . . Allies Melted . | . . . Intel | -11 -10 -10 ------- Run | Scr Mat Min Robot Analysis Total . | . . . Derelict Logs Recovered . | . . . Drone Launches . | . . . Drone Recoveries . | . . . Exploration | -11 -10 -10 ------------- Run | Scr Mat Min Turns Passed 496 | 58 154 284 Spaces Moved 296 | 38 97 161 Core 14 | 14 . . Treads . | . . . Legs 282 | 24 97 161 Wheels . | . . . Hover . | . . . Flight . | . . . Fastest Speed 50 | 50 120 120 Average Speed 119 | 112 120 120 Slowest Speed 150 | 150 120 150 Overloaded Moves . | . . . Propulsion Burnouts . | . . . Robots Hopped . | . . . Cave-ins Triggered . | . . . Exploration Rate (%) 24 | 3 18 51 Regions Visited 2 Branch Regions 1 Pre-discovered Areas . | . . . Known Exits Taken . | . . . Unknown Exits Taken 2 | 1 1 . Scrap Searched . | . . . Spaces Dug . | . . . Terrain Destroyed 26 | . . 26 Melee . | . . . Projectile . | . . . AOE 26 | . . 26 Terrain Rammed . | . . . Walls Destroyed . | . . . Machines Disabled . | . . . Actions | -11 -10 -10 --------- Run | Scr Mat Min Total 368 | 52 115 201 Wait 2 | . 2 . Move 294 | 37 96 161 Hop . | . . . Pick Up 14 | 8 4 2 Fast Attach . | . . . Attach 12 | 6 . 6 Detach . | . . . Swap 3 | 1 1 1 Drop 2 | . 2 . Fire 36 | . 10 26 Melee . | . . . Ram . | . . . Kick 5 | . . 5 Crush . | . . . Escape Stasis . | . . . Rewire . | . . . Trap . | . . . Miscellaneous . | . . . Route ------- -11/Scrapyard -10/Materials -10/Mines (discovered 1 exit: [*Mat]) History --------- Turn | Location | Event 11 | -11/Scrapyard | Discovered new exit (range 15) 59 | -11/Scrapyard | Entered Materials 173 | -10/Materials | Discovered new exit (range 11) 213 | -10/Materials | Entered Mines 232 | -10/Mines | Assembled infested the area 237 | -10/Mines | Assisted by a Guerilla fighting off Assembled 307 | -10/Mines | Build established: Mutant 455 | -10/Mines | Core integrity fell below 50% 476 | -10/Mines | Lost 6 parts (1p2n3w) 479 | -10/Mines | Core integrity fell below 20% 484 | -10/Mines | Discovered new exit (range 15) 497 | -10/Mines | Destroyed by as-02803 with Assembled Blade Last Messages --------------- 00424_ Aluminum Leg destroyed. 00426_ Med. Laser destroyed. 00430_ Acquired Flexi-carbon Leg. 00432_ Ion Engine destroyed. 00445_ Assault Rifle destroyed. 00455_ Slammed into as-38975. 00457_ Destabilizing: System corrupted (+2). 00458_ Kicked as-38975 out of the way. 00463_ as-38975 destroyed. 00471_ Acquired Imp. Light Armor Plating. 00473_ Acquired 88 matter. 00476_ Acquired 30 matter. 00482_ R-06 Scavenger collects Lgt. Ion Engine. 00484_ EXIT=FOUND 00487_ K-01 Serf collects debris. 00488_ R-06 Scavenger destroyed. 00490_ K-01 Serf collects debris. 00491_ as-02803 sneak attacks. 00493_ System corrupted: Heat flow error (+135). 00494_ K-01 Serf destroyed. Map ----- +----------------------------------------------------+ | #??# #????????????????????? | | #?## #????????????????????? | | ####### ###*%##????####???????????? | | ??????# % =%#???# #???????????? | | ??????#### !#??# ##?????????? | | ????????## ###* #?????????? | | ????????# %%[ #?????????? | | ???????# ###=#% #????????? | | ??????# =%"#?# #?? #????????? | | ??????# *##?# #????# ##????????? | | ?????# ##??#=###???????????????? | | ?????# #???##%*=##########??????? | | ?????## #???##%==* $ ???? | | ??????##???## %= ######?????????? | | ??????????## !=##??????????????? | | ?????????## =a##??????????????? | | ?????????# """ |=#??????????????? | | ?????????# """ % ##?????????????? | | ????????##=%""" ####??????????? | | ????????# [=%*= !%|##?????????? | | ?????# !!### =%==#???????#?? | | ????# ####??### !!%%#????? #?? | | ??? #????????## *%%*##??? #?? | | ????? ???????????##*!%%%### #?? | | ???????????????????#!%!*%a%% [#?? | | ???????????????????## @a%% %%#?? | | ????????????????????######## < #?? | | ?????????????????????????????% #?? | | ?????????????????????????????? #?? | | ??????????????????????????????????? | | ??????????????????????????????????? | | ??????????????????????????????????? | | ??????????????????????????????????? | | ??????????????????????????????????? | | ??????????????????????????????????? | | ??????????????????????????????????? | | ??????????????????????????????????? | | ??????????????????????????????????? | | ??????????????????????????????????? | | ??????????????????????????????????? | | ??????????????????????????????????? | | | | | | | | | | | | | | | | | | | +----------------------------------------------------+ Best States ------------- Heat Dissipation 25 Energy Generation 10 Energy Capacity 250 Matter Stores 300 Matter Capacity 300 Sight Range 16 Terrain Scan Density 10 Armor Coverage 150 Evasion (%) 40 Item Schematics ----------------- None Robot Schematics ------------------ None Fabricated ------------ Nothing Alien Tech Used ----------------- None Achievements -------------- None Challenges ------------ None Game ------ Seed SigixFluxInverter Manual? 0 Play Time 00:07:02 Cumulative 20.4 hours Start 2020.09.27 @ 09:13:43 End 2020.09.27 @ 09:21:27 Sessions 1 Manual Loads 0 Difficulty Rogue Special Mode None Game No. 41 Rogue 41 Adventurer 0 Explorer 0 Win Type - Total 0 Types 0/0/0/0/0/0/0/0/0 Lore% 23 Gallery% 31 Achievement% 21 Wizard Run 0 Options --------- ASCII 0 Keyboard 0 Movement Mouse Keybinds 0 Fullscreen 2 Font 18/SmallcapsGlow Map View 76x50 Tactical HUD 1 Map Filters NONE Filters NONE Steam 1 RUN: 6764a737-bf0d-4a7e-a4fe-6f23878a0c3c